fUSD/lending_fUSD_20240818
["ID","MTS","AMOUNT","RATE_DAILY","PERIOD"]
[335187936,1723956631612,-433.80461522,0.00010026,2]
[335187937,1723956631623,-756.03810701,0.00010026,2]
[335187938,1723956631635,-915.28920061,0.00010026,2]
[335187939,1723956631644,-267.42171652,0.00010097,2]
[335187940,1723956631656,-625.31397692,0.00010097,2]
[335187941,1723956631668,-155.0,0.00010097,2]
[335187942,1723956631678,-173.11208098,0.000103,2]
[335187943,1723956631694,-326.88791902,0.000103,2]
[335187944,1723956631704,-150.0,0.00010329,2]
[335187945,1723956631715,-180.25,0.00010429,2]
[335187946,1723956631725,-300.0,0.00010442,2]
[335187947,1723956631735,-300.0,0.00010442,2]
[335187948,1723956631745,-51.83964426,0.00010443,2]
[335187949,1723956631756,-2251.47454891,0.00010443,2]
[335187950,1723956631768,-5295.56352255,0.00010443,2]
[335187951,1723956631779,-2401.12228428,0.00010443,2]
[335187952,1723956631788,-433.24,0.00010467,2]
[335187953,1723956631798,-150.0,0.00010522,2]
[335187954,1723956631807,-1972.70446857,0.00010522,2]
[335187955,1723956631819,-857.30470671,0.00010522,2]
[335187956,1723956631830,-2152.19082472,0.00010522,2]
[335187957,1723956631839,-2751.22,0.00010523,2]
[335187958,1723956631848,-1429.24213647,0.00010523,2]
[335187959,1723956631859,-8110.91307769,0.00010523,2]
[335187960,1723956631870,-911.46,0.00010523,2]
[335187961,1723956631885,-7098.10478584,0.00010523,2]
[335187962,1723956631894,-6296.24318005,0.00010523,2]
[335187963,1723956631909,-552.46305185,0.00010523,2]
[335187964,1723956631920,-3988.4737681,0.00010523,2]
[335187965,1723956631929,-1542.04346308,0.00010523,2]
[335187966,1723956631940,-2804.31353954,0.00010523,2]
[335187967,1723956631951,-320.53821256,0.00010523,2]
[335187968,1723956631962,-415.98592689,0.00010523,2]
[335187969,1723956631972,-352.9371836,0.00010523,2]
[335187970,1723956631984,-7056.72177378,0.00010523,2]
[335187971,1723956631996,-298.62086198,0.00010523,2]
[335187972,1723956632007,-556.26670477,0.00010523,2]
[335187973,1723956632021,-1282.02818207,0.00010523,2]
[335187975,1723956637536,-1400.23603358,0.00010443,2]
[335187976,1723956637592,-8254.79749193,0.00010443,2]
[335187977,1723956637601,-5297.38044326,0.00010523,2]
[335187978,1723956637615,-4509.7,0.00010523,2]
[335187979,1723956637626,-359.19370847,0.00010523,2]
[335187980,1723956637636,-172.18682299,0.00010523,2]
[335187981,1723956637647,-457.99040286,0.00010523,2]
[335187982,1723956637661,-2832.03277415,0.00010523,2]
[335187983,1723956637670,-907.7,0.00010523,2]
[335187984,1723956637679,-722.28868972,0.00010523,2]
[335187985,1723956637690,-250.96131028,0.00010523,2]
[335187986,1723956637699,-39.11988804,0.00010567,2]
[335187987,1723956637712,-525.20782669,0.00010567,2]
[335187988,1723956637722,-416.81027458,0.00010835,2]
[335187989,1723956637733,-500.0,0.00010879,2]
[335187990,1723956637742,-546.9938583,0.00010888,2]
[335187991,1723956637751,-601.86371233,0.00010888,2]
[335187992,1723956637761,-152.50494,0.0001089,2]
[335187993,1723956637770,-2529.79017,0.0001089,2]
[335187994,1723956637779,-531.44515046,0.0001089,2]
[335187995,1723956637788,-269.38361638,0.0001089,2]
[335187996,1723956637797,-962.88244665,0.0001089,2]
[335187997,1723956637806,-438.4158,0.00010899,2]
[335187998,1723956637816,-1069.1205,0.00010899,2]
[335188000,1723956637825,-523.08333089,0.00010899,2]
[335188002,1723956637834,-274.8809,0.000109,2]
[335188004,1723956637843,-201.0696,0.000109,2]
[335188006,1723956637851,-250.0,0.00010959,2]
[335188008,1723956637860,-193.9,0.00010959,2]
[335188010,1723956637869,-161.58,0.00010959,2]
[335188012,1723956637878,-807.95,0.00010959,2]
[335188014,1723956637888,-500.0,0.0001096,2]
[335188016,1723956637897,-500.0,0.0001096,2]
[335188037,1723956637906,-700.0,0.0001096,2]
[335188040,1723956638076,-800.0,0.0001096,2]
[335188042,1723956638086,-500.0,0.0001096,2]
[335188043,1723956638095,-200.0,0.00010973,2]
[335188045,1723956638104,-500.0,0.00010984,2]
[335188048,1723956638115,-415.05274519,0.00010993,2]
[335188050,1723956638124,-163.34208761,0.00010997,2]
[335188052,1723956638136,-188.52177489,0.00010998,2]
[335188053,1723956638145,-810.0,0.00010999,2]
[335188054,1723956638154,-168.27,0.00010999,2]
[335188055,1723956638163,-801.016,0.00010999,2]
[335188056,1723956638172,-247.0,0.00010999,2]
[335188057,1723956638183,-157.364,0.00010999,2]
[335188058,1723956638193,-1209.976,0.00010999,2]
[335188059,1723956638203,-281.78526603,0.00010999,2]
[335188060,1723956638216,-11.99973397,0.00010999,2]
[335188061,1723956638226,-3726.0,0.00010999,2]
[335188062,1723956638235,-2319.23413401,0.00010999,2]
[335188063,1723956638246,-3525.76586599,0.00010999,2]
[335188064,1723956638255,-12545.68984524,0.00010999,2]
[335188065,1723956638265,-9205.31015476,0.00010999,2]
[335188066,1723956638276,-1680.294,0.00010999,2]
[335188067,1723956638285,-8500.0,0.00010999,2]
[335188068,1723956638294,-500.0,0.00010999,2]
[335188069,1723956638303,-500.0,0.00010999,2]
[335188070,1723956638312,-500.0,0.00010999,2]
[335188071,1723956638322,-335.69614728,0.00010999,2]
[335188072,1723956638332,-500.0,0.00010999,2]
[335188073,1723956638344,-500.0,0.00010999,2]
[335188074,1723956638354,-507.73181777,0.00010999,2]
[335188075,1723956638364,-873.96,0.00010999,2]
[335188076,1723956638373,-873.96,0.00010999,2]
[335188077,1723956638382,-873.96,0.00010999,2]
[335188078,1723956638391,-873.96,0.00010999,2]
[335188079,1723956638401,-873.96,0.00010999,2]
[335188080,1723956638411,-505.21619344,0.00010999,2]
[335188081,1723956638426,-368.74380656,0.00010999,2]
[335188082,1723956638435,-873.96,0.00010999,2]
[335188083,1723956638445,-873.96,0.00010999,2]
[335188084,1723956638455,-873.96,0.00010999,2]
[335188085,1723956638466,-873.96,0.00010999,2]
[335188086,1723956638476,-873.96,0.00010999,2]
[335188087,1723956638487,-873.96,0.00010999,2]
[335188088,1723956638497,-873.96,0.00010999,2]
[335188089,1723956638507,-873.96,0.00010999,2]
[335188090,1723956638518,-873.96,0.00010999,2]
[335188091,1723956638529,-873.96,0.00010999,2]
[335188092,1723956638539,-873.96,0.00010999,2]
[335188093,1723956638548,-873.96,0.00010999,2]
[335188094,1723956638557,-873.96,0.00010999,2]
[335188095,1723956638566,-873.96,0.00010999,2]
[335188096,1723956638575,-873.96,0.00010999,2]
[335188097,1723956638585,-873.96,0.00010999,2]
[335188098,1723956638595,-873.96,0.00010999,2]
[335188099,1723956638605,-874.0140368,0.00010999,2]
[335188100,1723956638614,-348.26413265,0.00010999,2]
[335188101,1723956638623,-5794.90678399,0.00010999,2]
[335188102,1723956638783,-463.4202856,0.00010999,2]
[335188103,1723956638794,-1185.14145906,0.00010999,2]
[335188104,1723956638805,-705.84775833,0.00010999,2]
[335188105,1723956638816,-2977.32631438,0.00010999,2]
[335188106,1723956638827,-609.85294956,0.00010999,2]
[335188107,1723956638838,-9059.29733584,0.00010999,2]
[335188109,1723956639636,-760.74789201,0.00010999,2]
[335188110,1723956639851,-256.62236691,0.00010999,2]
[335188111,1723956639961,-4349.1464181,0.00010999,2]
[335188112,1723956639971,-774.92,0.00010999,2]
[335188113,1723956639980,-774.92,0.00010999,2]
[335188114,1723956639989,-774.92,0.00010999,2]
[335188115,1723956639999,-774.92,0.00010999,2]
[335188116,1723956640008,-774.92,0.00010999,2]
[335188117,1723956640017,-774.92,0.00010999,2]
[335188118,1723956640026,-774.92,0.00010999,2]
[335188119,1723956640035,-774.92,0.00010999,2]
[335188120,1723956640045,-774.92,0.00010999,2]
[335188121,1723956640054,-774.92,0.00010999,2]
[335188122,1723956640063,-774.92,0.00010999,2]
[335188123,1723956640072,-774.92,0.00010999,2]
[335188124,1723956640081,-768.77685442,0.00010999,2]
[335188125,1723956640092,-6.14314558,0.00010999,2]
[335188126,1723956640101,-774.92,0.00010999,2]
[335188127,1723956640111,-774.92,0.00010999,2]
[335188128,1723956640119,-774.92,0.00010999,2]
[335188129,1723956640128,-774.92,0.00010999,2]
[335188130,1723956640141,-592.66790043,0.00010999,2]
[335188137,1723956642587,-348.26413265,0.00010993,2]
[335188138,1723956642597,-182.25209957,0.00010999,2]
[335188139,1723956642606,-774.92,0.00010999,2]
[335188140,1723956642616,-774.92,0.00010999,2]
[335188141,1723956642625,-774.92,0.00010999,2]
[335188142,1723956642634,-569.81936912,0.00010999,2]
[335188143,1723956642752,-205.10063088,0.00010999,2]
[335188144,1723956642761,-735.90636334,0.00010999,2]
[335188163,1723956645563,-1076.0,0.00010999,2]
[335188164,1723956645574,-39.01363666,0.00010999,2]
[335188165,1723956645583,-635.2275081,0.00010999,2]
[335188166,1723956645620,-139.79904576,0.00010999,2]
[335188167,1723956645630,-176.21498636,0.00011,2]
[335188168,1723956645678,-22004.67167494,0.00011,2]
[335188169,1723956646143,-43211.2930391,0.00011,2]
[335188170,1723956674097,500.0,8.22e-05,2]
[335188171,1723956675689,500.0,9.59e-05,2]
[335188172,1723956679985,11922.914,9.9e-05,2]
[335188176,1723956704169,500.0,8.22e-05,2]
[335188177,1723956704692,500.0,8.22e-05,2]
[335188178,1723956704762,700.0,8.22e-05,2]
[335188179,1723956705714,900.0,8.22e-05,2]
[335188180,1723956706376,700.0,9.59e-05,2]
[335188181,1723956707334,900.0,9.59e-05,2]
[335188182,1723956736561,500.0,8.92e-05,2]
[335188183,1723956737075,500.0,9.177e-05,2]
[335188184,1723956740401,260.42858382,8.209e-05,2]
[335188185,1723956740428,239.57141618,8.209e-05,2]
[335188186,1723956740589,435.67228527,9.305e-05,2]
[335188187,1723956750702,500.0,8.673e-05,2]
[335188188,1723956752773,500.0,7.982e-05,2]
[335188189,1723956753260,500.0,9.299e-05,2]
[335188190,1723956754349,500.0,8.516e-05,2]
[335188191,1723956796171,759.0,8.516e-05,2]
[335188194,1723956921285,155.0,9.988e-05,2]
[335188198,1723957047266,17.77929267,8.052e-05,2]
[335188199,1723957047294,482.22070733,8.052e-05,2]
[335188200,1723957071810,1856.14311118,9.963e-05,2]
[335188201,1723957071836,957.4885875,9.963e-05,2]
[335188202,1723957071863,2781.33510354,9.963e-05,2]
[335188203,1723957071886,8500.10319778,9.963e-05,2]
[335188204,1723957115417,1257.73185636,9.988e-05,2]
[335188205,1723957115777,427.85,8.219e-05,2]
[335188207,1723957148365,250.0,9.961e-05,2]
[335188209,1723957186005,800.0,9.954e-05,2]
[335188217,1723957335567,500.0,8.749e-05,2]
[335188218,1723957335920,500.0,9.868e-05,2]
[335188219,1723957339881,502.60757323,8.039e-05,2]
[335188220,1723957352943,500.0,8.14e-05,2]
[335188221,1723957354002,500.0,8.876e-05,2]
[335188241,1723957634099,22086.10100975,9.988e-05,2]
[335188260,1723957653317,500.0,8.511e-05,2]
[335188261,1723957654389,500.0,8.709e-05,2]
[335188264,1723957678698,406.45,8.219e-05,2]
[335188266,1723957693276,360.0,9.932e-05,2]
[335188267,1723957695105,26162.30956378,9.943e-05,2]
[335188272,1723957759887,161.85,9.917e-05,2]
[335188281,1723957837789,-550.0,0.0001,2]
[335188282,1723957837799,-210.24889066,0.0001,2]
[335188283,1723957837808,-607.23047236,0.00010009,2]
[335188284,1723957837845,-355.65197429,0.00010009,2]
[335188285,1723957837856,-238.15,0.00010339,2]
[335188286,1723957837865,-189.98,0.0001041,2]
[335188287,1723957837875,-216.21802571,0.00010471,2]
[335188288,1723957838011,-100.65141971,0.00010471,2]
[335188289,1723957838021,-406.45,0.00010472,2]
[335188290,1723957838031,-18198.88,0.000105,2]
[335188291,1723957838041,-546.74754214,0.00010505,2]
[335188292,1723957838050,-150.0,0.00010784,2]
[335188293,1723957838059,-39788.57,0.00010794,2]
[335188294,1723957838068,-151.54,0.000108,2]
[335188295,1723957838078,-155.0,0.00010852,2]
[335188296,1723957838087,-155.0,0.00010852,2]
[335188297,1723957838096,-499.99,0.0001086,2]
[335188298,1723957838105,-425.92449576,0.00010889,2]
[335188299,1723957838114,-2529.79017,0.0001089,2]
[335188300,1723957838125,-415.05274519,0.0001089,2]
[335188301,1723957838134,-1436.993,0.00010898,2]
[335188302,1723957838143,-691.173,0.00010898,2]
[335188303,1723957838152,-531.44515046,0.00010899,2]
[335188304,1723957838161,-5566.487,0.000109,2]
[335188305,1723957838170,-214.7691,0.000109,2]
[335188306,1723957838179,-1401.9262,0.000109,2]
[335188307,1723957838189,-2529.79018,0.000109,2]
[335188308,1723957838198,-1014.0,0.000109,2]
[335188309,1723957838207,-1000.0,0.000109,2]
[335188310,1723957838216,-2529.79017,0.0001094,2]
[335188311,1723957838225,-250.0,0.00010959,2]
[335188312,1723957838234,-500.0,0.0001096,2]
[335188313,1723957838243,-500.0,0.0001096,2]
[335188314,1723957838252,-700.0,0.0001096,2]
[335188315,1723957838261,-900.0,0.0001096,2]
[335188316,1723957838270,-200.0,0.00010973,2]
[335188317,1723957838279,-5800.0,0.00010975,2]
[335188318,1723957838288,-2529.79017,0.0001098,2]
[335188319,1723957838297,-5800.0,0.00010983,2]
[335188320,1723957838306,-5800.0,0.00010983,2]
[335188321,1723957838315,-506383.51226237,0.00010988,2]
[335188322,1723957839942,-473.28023069,0.00010898,2]
[335188323,1723957839954,-55.07676931,0.00010898,2]
[335188324,1723957839963,-1862.2232307,0.00010988,2]
[335188325,1723957839975,-1476.65593231,0.00010988,2]
[335188326,1723957839985,-428.4753704,0.00010988,2]
[335188327,1723957839997,-294.45230321,0.00010988,2]
[335188328,1723957840050,-875.6832297,0.00010988,2]
[335188329,1723957840107,-1487.35560269,0.00010988,2]
[335188330,1723957840219,-271.37002482,0.00010988,2]
[335188331,1723957840230,-3472.08824335,0.00010988,2]
[335188334,1723957842796,-485.29999995,0.00010899,2]
[335188335,1723957842906,-41.53395281,0.00010899,2]
[335188336,1723957842915,-4786.87070749,0.00010988,2]
[335188338,1723957842927,-541.68566657,0.00010988,2]
[335188340,1723957842938,-697.68583,0.00010988,2]
[335188341,1723957842948,-720.02828238,0.00010988,2]
[335188342,1723957842959,-502.49912,0.00010988,2]
[335188343,1723957842970,-505.5664408,0.00010988,2]
[335188344,1723957842981,-1016.1,0.00010988,2]
[335188353,1723957845777,-824.59977352,0.00010988,2]
[335188354,1723957845789,-2497.79507697,0.00010988,2]
[335188355,1723957845800,-329.20700671,0.00010988,2]
[335188356,1723957845811,-1491.15000001,0.00010988,2]
[335188357,1723957845839,-1089.88117537,0.00010988,2]
[335188358,1723957845899,-7599.63402511,0.00010988,2]
[335188359,1723957845910,-2372.81520537,0.00010988,2]
[335188360,1723957845958,-375.76220257,0.00010988,2]
[335188361,1723957846019,-95257.4606739,0.00010988,2]
[335188362,1723957846029,-272.24,0.0001099,2]
[335188363,1723957846038,-272.24,0.0001099,2]
[335188364,1723957846047,-272.24,0.0001099,2]
[335188365,1723957846056,-272.24,0.0001099,2]
[335188366,1723957846065,-272.24,0.0001099,2]
[335188367,1723957846074,-272.24,0.0001099,2]
[335188368,1723957846083,-272.24,0.0001099,2]
[335188369,1723957846092,-272.24,0.0001099,2]
[335188370,1723957846100,-272.24,0.0001099,2]
[335188371,1723957846110,-272.24,0.0001099,2]
[335188372,1723957846119,-272.24,0.0001099,2]
[335188373,1723957846128,-272.24,0.0001099,2]
[335188374,1723957846137,-272.24,0.0001099,2]
[335188375,1723957846146,-5800.0,0.00010992,2]
[335188376,1723957846155,-5800.0,0.00010992,2]
[335188377,1723957846164,-290.802,0.00010999,2]
[335188378,1723957846174,-152.968,0.00010999,2]
[335188379,1723957846183,-500.0,0.00010999,2]
[335188380,1723957846192,-500.0,0.00010999,2]
[335188381,1723957846201,-500.0,0.00010999,2]
[335188382,1723957846210,-500.0,0.00010999,2]
[335188383,1723957846219,-221.33785516,0.00010999,2]
[335188384,1723957846228,-500.0,0.00010999,2]
[335188385,1723957846238,-500.0,0.00010999,2]
[335188386,1723957846247,-500.0,0.00010999,2]
[335188387,1723957846256,-500.0,0.00010999,2]
[335188388,1723957846265,-501.19010849,0.00010999,2]
[335188389,1723957846274,-386.03934227,0.00010999,2]
[335188390,1723957846283,-155.48691128,0.00010999,2]
[335188391,1723957846293,-5654.8679391,0.00010999,2]
[335188392,1723957846304,-2017.19470143,0.00010999,2]
[335188393,1723957846315,-2335.18041205,0.00010999,2]
[335188394,1723957846326,-1002.44274149,0.00010999,2]
[335188395,1723957846337,-1383.40857251,0.00010999,2]
[335188401,1723957880401,500.0,8.22e-05,2]
[335188402,1723957880593,600.0,8.22e-05,2]
[335188403,1723957880914,409.17117118,9.275e-05,2]
[335188404,1723957882186,600.0,9.59e-05,2]
[335188411,1723957904948,800.0,8.22e-05,2]
[335188412,1723957906946,800.0,9.59e-05,2]
[335188413,1723957913476,695.00876257,9.59e-05,2]
[335188414,1723957920258,500.0,8.22e-05,2]
[335188415,1723957926394,500.0,9.59e-05,2]
[335188417,1723957943528,695.00876257,9.59e-05,2]
[335188418,1723957943902,500.0,7.951e-05,2]
[335188419,1723957944222,500.0,9.942e-05,2]
[335188420,1723957946818,199.92494942,8.009e-05,2]
[335188422,1723957953650,650.33623484,9.751e-05,2]
[335188423,1723957953898,524.03319068,8.049e-05,2]
[335188429,1723958002992,791.52283351,9.708e-05,2]
[335188431,1723958008870,158.40271267,9.708e-05,2]
[335188434,1723958019624,200.0,8.049e-05,2]
[335188435,1723958020045,200.0,8.049e-05,2]
[335188436,1723958020370,200.0,8.049e-05,2]
[335188437,1723958020711,200.0,8.049e-05,2]
[335188438,1723958021050,250.0,8.049e-05,2]
[335188449,1723958186385,403.52,8.219e-05,2]
[335188450,1723958187497,791.52283351,8.049e-05,2]
[335188453,1723958229941,3641.13410836,9.948e-05,2]
[335188454,1723958238722,161.18294935,7.879e-05,2]
[335188455,1723958241247,200.0,9.979e-05,2]
[335188456,1723958242416,898.01423793,7.918e-05,2]
[335188457,1723958243003,791.52283351,9.756e-05,2]
[335188458,1723958245186,500.0,7.907e-05,2]
[335188459,1723958249925,500.0,9.477e-05,2]
[335188460,1723958253847,712.0,9.979e-05,2]
[335188461,1723958256382,523.1991546,9.756e-05,2]
[335188462,1723958362512,791.52283351,9.756e-05,2]
[335188464,1723958467630,791.52283351,9.756e-05,2]
[335188465,1723958476553,16291.45180405,9.756e-05,2]
[335188466,1723958482517,791.52283351,9.756e-05,2]
[335188467,1723958547003,837.49779243,8.681e-05,2]
[335188468,1723958547271,500.0,9.077e-05,2]
[335188469,1723958571321,26162.30956378,9.943e-05,2]
[335188470,1723958599553,791.52283351,9.077e-05,2]
[335188471,1723958623959,946.93,9.927e-05,2]
[335188472,1723958652189,917.9316,9.899e-05,2]
[335188473,1723958652226,383.34,8.219e-05,2]
[335188474,1723958690538,791.52283351,8.219e-05,2]
[335188475,1723958707647,150.0,9.888e-05,2]
[335188476,1723958707988,150.0,9.926e-05,2]
[335188477,1723958708509,150.0,9.963e-05,2]
[335188478,1723958721304,150.0,9.888e-05,2]
[335188479,1723958731897,150.0,9.888e-05,2]
[335188480,1723958732035,791.52283351,9.962e-05,2]
[335188481,1723958736895,230.52,9.593e-05,2]
[335188482,1723958745168,150.0,9.888e-05,2]
[335188483,1723958755421,150.0,9.888e-05,2]
[335188484,1723958761067,250.0,9.588e-05,2]
[335188491,1723958835541,500.0,9.294e-05,2]
[335188492,1723958839869,930.85084884,8.512e-05,2]
[335188493,1723958840912,430.4,9.607e-05,2]
[335188501,1723958847713,791.52283351,9.588e-05,2]
[335188502,1723958852979,501.44540409,8.291e-05,2]
[335188503,1723958858532,791.52283351,9.588e-05,2]
[335188511,1723958964564,791.52283351,9.588e-05,2]
[335188521,1723959017373,789.6154,9.909e-05,2]
[335188534,1723959032052,-150.0,9.998e-05,2]
[335188535,1723959032062,-529.71,0.0001,2]
[335188536,1723959032076,-737.86,0.0001,2]
[335188537,1723959032086,-550.0,0.0001,2]
[335188538,1723959032096,-150.0,0.00010001,2]
[335188539,1723959032105,-150.0,0.0001001,2]
[335188540,1723959032116,-150.0,0.00010039,2]
[335188541,1723959032125,-150.0,0.00010077,2]
[335188542,1723959032135,-155.0,0.00010097,2]
[335188543,1723959032145,-316.93568837,0.00010097,2]
[335188544,1723959032155,-2387.55022916,0.00010097,2]
[335188545,1723959032165,-150.0,0.00010107,2]
[335188546,1723959032174,-150.0,0.00010115,2]
[335188547,1723959032183,-150.0,0.00010132,2]
[335188548,1723959032193,-150.0,0.00010153,2]
[335188549,1723959032202,-150.0,0.00010191,2]
[335188550,1723959032211,-150.0,0.00010217,2]
[335188551,1723959032221,-150.0,0.00010229,2]
[335188552,1723959032230,-150.0,0.00010254,2]
[335188553,1723959032240,-150.0,0.00010267,2]
[335188554,1723959032249,-150.0,0.00010304,2]
[335188555,1723959032259,-150.0,0.00010327,2]
[335188556,1723959032272,-150.0,0.00010342,2]
[335188557,1723959032281,-150.0,0.00010376,2]
[335188558,1723959032291,-150.0,0.0001038,2]
[335188559,1723959032301,-150.0,0.00010418,2]
[335188560,1723959032310,-150.0,0.00010437,2]
[335188561,1723959032322,-150.0,0.00010437,2]
[335188562,1723959032331,-150.0,0.00010437,2]
[335188563,1723959032341,-10000.0,0.00010443,2]
[335188564,1723959032351,-150.0,0.00010456,2]
[335188565,1723959032361,-613.03614918,0.00010471,2]
[335188566,1723959032373,-886.96385082,0.00010471,2]
[335188567,1723959032382,-383.34,0.00010472,2]
[335188568,1723959032392,-150.0,0.00010494,2]
[335188569,1723959032401,-150.0,0.00010498,2]
[335188571,1723959032411,-366.4101937,0.00010505,2]
[335188573,1723959032420,-150.0,0.00010532,2]
[335188575,1723959032430,-150.0,0.00010547,2]
[335188576,1723959032439,-687.72540872,0.00010566,2]
[335188577,1723959032448,-155.0,0.00010566,2]
[335188578,1723959032458,-150.0,0.0001057,2]
[335188579,1723959032467,-150.0,0.00010607,2]
[335188580,1723959032476,-150.0,0.0001062,2]
[335188581,1723959032486,-120.19681691,0.00010645,2]
[335188582,1723959032502,-29.80318309,0.00010645,2]
[335188584,1723959032511,-150.0,0.00010657,2]
[335188586,1723959032522,-150.0,0.00010683,2]
[335188588,1723959032532,-962.88244665,0.00010699,2]
[335188590,1723959032541,-962.88244665,0.00010699,2]
[335188592,1723959032551,-202.99768405,0.00010699,2]
[335188594,1723959032560,-150.0,0.00010721,2]
[335188596,1723959032570,-150.0,0.00010742,2]
[335188597,1723959032580,-499.99,0.0001075,2]
[335188598,1723959032590,-150.0,0.00010759,2]
[335188599,1723959032600,-150.0,0.00010767,2]
[335188600,1723959032609,-230.52,0.00010792,2]
[335188601,1723959032619,-150.0,0.00010797,2]
[335188602,1723959032628,-1950.5873,0.000108,2]
[335188603,1723959032638,-2500.0,0.000108,2]
[335188604,1723959032647,-272.8767,0.000108,2]
[335188605,1723959032657,-430.4,0.00010808,2]
[335188606,1723959032666,-150.0,0.00010835,2]
[335188607,1723959032675,-6471.70293622,0.00010861,2]
[335188608,1723959032686,-15226.70008826,0.00010861,2]
[335188609,1723959032698,-4463.9065393,0.00010861,2]
[335188610,1723959032885,-522.96750718,0.00010862,2]
[335188611,1723959032895,-150.0,0.00010864,2]
[335188612,1723959032905,-150.0,0.00010873,2]
[335188613,1723959032914,-150.0,0.00010876,2]
[335188614,1723959032924,-20133.87839727,0.0001088,2]
[335188615,1723959032933,-294.7,0.0001089,2]
[335188616,1723959032942,-294.7,0.0001089,2]
[335188617,1723959032951,-18.14746799,0.0001089,2]
[335188618,1723959032971,-276.55253201,0.0001089,2]
[335188619,1723959032981,-294.7,0.0001089,2]
[335188620,1723959032990,-294.7,0.0001089,2]
[335188621,1723959032999,-294.7,0.0001089,2]
[335188622,1723959033009,-294.7,0.0001089,2]
[335188623,1723959033019,-294.7,0.0001089,2]
[335188624,1723959033029,-294.7,0.0001089,2]
[335188625,1723959033039,-294.7,0.0001089,2]
[335188626,1723959033049,-294.7,0.0001089,2]
[335188627,1723959033059,-294.7,0.0001089,2]
[335188628,1723959033070,-294.7,0.0001089,2]
[335188629,1723959033084,-294.7,0.0001089,2]
[335188630,1723959033095,-294.7,0.0001089,2]
[335188631,1723959033104,-294.7,0.0001089,2]
[335188632,1723959033115,-294.7,0.0001089,2]
[335188633,1723959033125,-294.7,0.0001089,2]
[335188634,1723959033134,-269.59561484,0.0001089,2]
[335188635,1723959033146,-25.10438516,0.0001089,2]
[335188636,1723959033158,-294.7,0.0001089,2]
[335188637,1723959033168,-294.7,0.0001089,2]
[335188638,1723959033178,-294.7,0.0001089,2]
[335188639,1723959033188,-294.7,0.0001089,2]
[335188640,1723959033198,-294.7,0.0001089,2]
[335188641,1723959033208,-294.7,0.0001089,2]
[335188642,1723959033218,-294.7,0.0001089,2]
[335188643,1723959033228,-294.7,0.0001089,2]
[335188644,1723959033237,-294.7,0.0001089,2]
[335188645,1723959033247,-294.7,0.0001089,2]
[335188646,1723959033257,-294.7,0.0001089,2]
[335188647,1723959033266,-294.7,0.0001089,2]
[335188648,1723959033276,-294.7,0.0001089,2]
[335188649,1723959033287,-294.7,0.0001089,2]
[335188650,1723959033297,-239.3114337,0.0001089,2]
[335188651,1723959033315,-55.3885663,0.0001089,2]
[335188652,1723959033324,-224.30800646,0.0001089,2]
[335188653,1723959033335,-70.39199354,0.0001089,2]
[335188654,1723959033346,-294.7,0.0001089,2]
[335188655,1723959033355,-294.7,0.0001089,2]
[335188656,1723959033365,-2.75635263,0.0001089,2]
[335188657,1723959033377,-291.94364737,0.0001089,2]
[335188658,1723959033387,-294.7,0.0001089,2]
[335188659,1723959033397,-232.1807978,0.0001089,2]
[335188660,1723959033408,-62.5192022,0.0001089,2]
[335188661,1723959033418,-294.7,0.0001089,2]
[335188662,1723959033428,-294.7,0.0001089,2]
[335188663,1723959033438,-105.21248119,0.0001089,2]
[335188664,1723959033450,-189.48751881,0.0001089,2]